fUST/lending_fUST_20250615
["ID","MTS","AMOUNT","RATE_DAILY","PERIOD"]
[365827387,1749941452763,-151.0,0.00022822,4]
[365827388,1749941452773,-151.0,0.00022822,4]
[365827389,1749941452782,-151.0,0.00022849,4]
[365827390,1749941452792,-679.0,0.00022959,4]
[365827391,1749941452801,-679.0,0.00022986,4]
[365827392,1749941452810,-679.0,0.00023014,4]
[365827393,1749941452821,-679.0,0.00023041,4]
[365827394,1749941452830,-679.0,0.00023069,4]
[365827395,1749941452839,-679.0,0.00023096,4]
[365827396,1749941452848,-679.0,0.00023123,4]
[365827397,1749941452858,-679.0,0.00023151,4]
[365827398,1749941452867,-679.0,0.00023178,4]
[365827399,1749941452877,-679.0,0.00023206,4]
[365827400,1749941452886,-679.0,0.00023233,4]
[365827401,1749941452896,-679.0,0.0002326,4]
[365827402,1749941452906,-1892.61,0.00023287,4]
[365827403,1749941452915,-679.0,0.00023288,4]
[365827404,1749941452926,-679.0,0.00023315,4]
[365827405,1749941452936,-679.0,0.00023343,4]
[365827406,1749941452946,-679.0,0.0002337,4]
[365827407,1749941452955,-679.0,0.00023397,4]
[365827408,1749941452964,-679.0,0.00023425,4]
[365827409,1749941452974,-701.0,0.00023452,4]
[365827410,1749941452984,-1892.61,0.00023561,4]
[365827411,1749941452999,-845.10789306,0.000238,7]
[365827412,1749941453008,-1892.61,0.00023835,4]
[365827413,1749941453019,-250.0,0.00023903,2]
[365827414,1749941453029,-3705.76109622,0.00024,2]
[365827415,1749941453039,-3123.87477756,0.00024,2]
[365827416,1749941453049,-2811.64231956,0.00024,2]
[365827421,1749941788608,460.0,0.00024997,60]
[365827431,1749942132134,191.349627,0.00013699,2]
[365827438,1749942361064,3000.0,0.00024657,120]
[365827440,1749942444129,-191.349627,0.00020187,2]
[365827441,1749942444153,-183.359264,0.00020708,2]
[365827442,1749942444176,-666.0,0.00020814,2]
[365827443,1749942444197,-182.017611,0.00020815,2]
[365827444,1749942444219,-382.57413548,0.00020871,2]
[365827447,1749942453135,-118.33073352,0.00020871,2]
[365827448,1749942453157,-225.6793886,0.00021129,2]
[365827449,1749942453178,-500.0,0.00021154,2]
[365827450,1749942453198,-160.47140234,0.000214,2]
[365827451,1749942453219,-168.0,0.00021401,2]
[365827452,1749942453241,-1386.23,0.00021588,2]
[365827453,1749942453262,-3007.07914141,0.00021817,2]
[365827454,1749942453290,-1629.32482509,0.000219,6]
[365827455,1749942453311,-183.12,0.00021907,2]
[365827456,1749942453334,-300.0,0.00021911,2]
[365827457,1749942453355,-300.0,0.00021911,2]
[365827458,1749942453377,-1200.0,0.00021912,2]
[365827459,1749942453399,-300.0,0.00021913,2]
[365827460,1749942453420,-239.0,0.00021913,2]
[365827461,1749942453445,-500.0,0.00021916,2]
[365827462,1749942453469,-38.03066934,0.00021916,2]
[365827496,1749942632090,-200.37153447,0.00020289,2]
[365827498,1749942632100,-221.62435964,0.00020608,2]
[365827500,1749942632109,-173.697047,0.00020708,2]
[365827502,1749942632119,-2314.61818355,0.00020916,2]
[365827504,1749942632130,-255.57243791,0.00020916,2]
[365827514,1749942632214,-3688.47930524,0.00020916,2]
[365827516,1749942632223,-500.0,0.00021154,2]
[365827518,1749942632233,-1200.0,0.00021584,2]
[365827520,1749942632243,-1402.44,0.00021585,2]
[365827522,1749942632252,-13699.94791372,0.00021817,2]
[365827524,1749942632262,-2479.73730544,0.00021817,2]
[365827526,1749942632272,-300.0,0.00021899,2]
[365827528,1749942632281,-171.0,0.00021899,2]
[365827530,1749942632290,-1575.0139975,0.000219,6]
[365827532,1749942632299,-705.54628,0.00021916,2]
[365827534,1749942632308,-461.96933066,0.00021916,2]
[365827536,1749942632317,-500.0,0.00021916,2]
[365827537,1749942632327,-255.5210435,0.00021916,2]
[365827539,1749942632339,-500.0,0.00021916,2]
[365827542,1749942632348,-500.0,0.00021916,2]
[365827543,1749942632357,-500.0,0.00021916,2]
[365827545,1749942632366,-441.79891709,0.00021916,2]
[365827547,1749942632375,-160.0,0.00021916,2]
[365827549,1749942632384,-500.0,0.00021917,4]
[365827551,1749942632393,-430.0,0.00021917,4]
[365827553,1749942632403,-301.02993744,0.00021917,4]
[365827555,1749942632412,-307.723936,0.00021917,4]
[365827558,1749942632422,-430.0,0.00021917,4]
[365827559,1749942632433,-460.0,0.00021917,4]
[365827562,1749942632449,-430.0,0.00021917,4]
[365827564,1749942632463,-460.0,0.00021917,4]
[365827566,1749942632473,-452.95378395,0.00021917,4]
[365827568,1749942632483,-451.02147244,0.00021917,4]
[365827570,1749942632494,-430.0,0.00021917,4]
[365827572,1749942632511,-430.0,0.00021917,4]
[365827574,1749942632521,-473.99653753,0.00021917,4]
[365827576,1749942632531,-473.44892798,0.00021917,4]
[365827578,1749942632541,-500.0,0.00021917,4]
[365827580,1749942632551,-460.0,0.00021917,4]
[365827582,1749942632561,-456.27933646,0.00021917,4]
[365827584,1749942632571,-430.0,0.00021917,4]
[365827586,1749942632584,-430.0,0.00021917,4]
[365827588,1749942632594,-404.39570015,0.00021917,4]
[365827590,1749942632604,-460.0,0.00021917,4]
[365827592,1749942632614,-430.0,0.00021917,4]
[365827594,1749942632624,-528.96169718,0.00021917,4]
[365827596,1749942632634,-430.0,0.00021917,4]
[365827598,1749942632646,-430.0,0.00021917,4]
[365827600,1749942632656,-430.0,0.00021917,4]
[365827602,1749942632666,-430.0,0.00021917,4]
[365827604,1749942632675,-400.0,0.00021917,4]
[365827606,1749942632685,-403.15727008,0.00021917,4]
[365827608,1749942632695,-408.66453428,0.00021917,4]
[365827611,1749942632705,-430.0,0.00021917,4]
[365827613,1749942632714,-430.0,0.00021917,4]
[365827614,1749942632724,-460.0,0.00021917,4]
[365827616,1749942632735,-460.0,0.00021917,4]
[365827618,1749942632744,-460.0,0.00021917,4]
[365827620,1749942632754,-430.0,0.00021917,4]
[365827622,1749942632764,-460.0,0.00021917,4]
[365827624,1749942632775,-460.0,0.00021917,4]
[365827626,1749942632786,-430.0,0.00021917,4]
[365827628,1749942632795,-460.0,0.00021917,4]
[365827630,1749942632804,-460.0,0.00021917,4]
[365827632,1749942632814,-460.0,0.00021917,4]
[365827634,1749942632824,-460.0,0.00021917,4]
[365827636,1749942632834,-430.0,0.00021917,4]
[365827638,1749942632844,-466.60529559,0.00021917,4]
[365827640,1749942632853,-460.0,0.00021917,4]
[365827642,1749942632863,-430.0,0.00021917,4]
[365827644,1749942632873,-430.0,0.00021917,4]
[365827646,1749942632882,-430.0,0.00021917,4]
[365827648,1749942632892,-460.0,0.00021917,4]
[365827650,1749942632902,-460.0,0.00021917,4]
[365827652,1749942632912,-460.0,0.00021917,4]
[365827654,1749942632922,-460.0,0.00021917,4]
[365827656,1749942632932,-413.1213061,0.00021917,4]
[365827658,1749942632942,-430.0,0.00021917,4]
[365827660,1749942632952,-460.0,0.00021917,4]
[365827662,1749942632961,-430.0,0.00021917,4]
[365827664,1749942632970,-460.0,0.00021917,4]
[365827666,1749942632979,-460.0,0.00021917,4]
[365827668,1749942632989,-400.0,0.00021917,4]
[365827670,1749942632998,-460.0,0.00021917,4]
[365827671,1749942633008,-460.0,0.00021917,4]
[365827674,1749942633018,-460.0,0.00021917,4]
[365827675,1749942633027,-416.75031009,0.00021917,4]
[365827678,1749942633037,-460.0,0.00021917,4]
[365827680,1749942633047,-460.0,0.00021917,4]
[365827682,1749942633057,-400.0,0.00021917,4]
[365827684,1749942633067,-400.0,0.00021917,4]
[365827685,1749942633083,-460.0,0.00021917,4]
[365827686,1749942633094,-460.0,0.00021917,4]
[365827687,1749942633104,-460.0,0.00021917,4]
[365827688,1749942633115,-430.0,0.00021917,4]
[365827689,1749942633125,-430.0,0.00021917,4]
[365827690,1749942633135,-460.0,0.00021917,4]
[365827691,1749942633145,-460.0,0.00021917,4]
[365827692,1749942633155,-430.0,0.00021917,4]
[365827693,1749942633165,-430.0,0.00021917,4]
[365827694,1749942633175,-401.11114694,0.00021917,4]
[365827695,1749942633186,-460.0,0.00021917,4]
[365827696,1749942633196,-430.0,0.00021917,4]
[365827697,1749942633206,-460.0,0.00021917,4]
[365827698,1749942633216,-430.0,0.00021917,4]
[365827699,1749942633226,-249.15449928,0.00021917,4]
[365827700,1749942633235,-460.0,0.00021917,4]
[365827701,1749942633246,-460.0,0.00021917,4]
[365827702,1749942633255,-203.69009957,0.00021917,4]
[365827703,1749942633265,-430.0,0.00021917,4]
[365827704,1749942633275,-400.0,0.00021917,4]
[365827705,1749942633285,-400.0,0.00021917,4]
[365827706,1749942633295,-460.0,0.00021917,4]
[365827707,1749942633305,-460.0,0.00021917,4]
[365827708,1749942633315,-305.19891667,0.00021917,4]
[365827709,1749942633325,-500.01100002,0.00021917,4]
[365827710,1749942633336,-430.0,0.00021917,4]
[365827711,1749942633346,-430.0,0.00021917,4]
[365827712,1749942633357,-430.0,0.00021917,4]
[365827713,1749942633367,-430.0,0.00021917,4]
[365827714,1749942633376,-430.0,0.00021917,4]
[365827715,1749942633387,-430.0,0.00021917,4]
[365827716,1749942633396,-180.177,0.00021917,2]
[365827717,1749942633406,-907.14,0.00021917,4]
[365827718,1749942633416,-416.69997203,0.00021917,4]
[365827719,1749942633425,-430.0,0.00021917,4]
[365827720,1749942633435,-238.6573862,0.00021917,4]
[365827722,1749942633445,-460.0,0.00021917,4]
[365827723,1749942633454,-434.54221826,0.00021917,4]
[365827724,1749942633464,-430.0,0.00021917,4]
[365827726,1749942633474,-430.0,0.00021917,4]
[365827728,1749942633483,-430.0,0.00021917,4]
[365827730,1749942633493,-400.0,0.00021917,4]
[365827732,1749942633506,-450.0,0.00021917,4]
[365827734,1749942633516,-573.98,0.00021917,4]
[365827736,1749942633526,-430.0,0.00021917,4]
[365827738,1749942633539,-450.0,0.00021917,4]
[365827740,1749942633549,-242.7196056,0.00021917,4]
[365827742,1749942633559,-460.0,0.00021917,4]
[365827744,1749942633568,-460.0,0.00021917,4]
[365827746,1749942633578,-460.0,0.00021917,4]
[365827748,1749942633591,-430.0,0.00021917,4]
[365827750,1749942633601,-430.0,0.00021917,4]
[365827752,1749942633611,-450.0,0.00021917,4]
[365827754,1749942633621,-430.0,0.00021917,4]
[365827756,1749942633631,-430.0,0.00021917,4]
[365827758,1749942633641,-430.0,0.00021917,4]
[365827760,1749942633652,-460.0,0.00021917,4]
[365827762,1749942633662,-430.0,0.00021917,4]
[365827764,1749942633671,-460.0,0.00021917,4]
[365827766,1749942633681,-460.0,0.00021917,4]
[365827769,1749942633692,-430.0,0.00021917,4]
[365827771,1749942633702,-430.92488639,0.00021917,4]
[365827773,1749942633712,-460.0,0.00021917,4]
[365827775,1749942633722,-460.0,0.00021917,4]
[365827777,1749942633732,-570.11674219,0.00021917,4]
[365827779,1749942633742,-430.0,0.00021917,4]
[365827781,1749942633752,-430.0,0.00021917,4]
[365827783,1749942633761,-450.0,0.00021917,4]
[365827785,1749942633771,-430.0,0.00021917,4]
[365827787,1749942633781,-430.0,0.00021917,4]
[365827789,1749942633791,-430.0,0.00021917,4]
[365827791,1749942633801,-450.0,0.00021917,4]
[365827793,1749942633811,-430.0,0.00021917,4]
[365827795,1749942633820,-430.0,0.00021917,4]
[365827797,1749942633830,-337.42577709,0.00021917,4]
[365827799,1749942633840,-400.0,0.00021917,4]
[365827801,1749942633850,-430.0,0.00021917,4]
[365827803,1749942633860,-460.0,0.00021917,4]
[365827805,1749942633869,-400.0,0.00021917,4]
[365827807,1749942633879,-450.0,0.00021917,4]
[365827809,1749942633890,-430.0,0.00021917,4]
[365827811,1749942633899,-406.22550796,0.00021917,4]
[365827813,1749942633908,-400.0,0.00021917,4]
[365827815,1749942633918,-430.0,0.00021917,4]
[365827817,1749942633927,-430.0,0.00021917,4]
[365827819,1749942633936,-430.0,0.00021917,4]
[365827821,1749942633945,-430.0,0.00021917,4]
[365827822,1749942633955,-460.0,0.00021917,4]
[365827823,1749942633964,-450.0,0.00021917,4]
[365827824,1749942633973,-450.0,0.00021917,4]
[365827825,1749942633983,-460.0,0.00021917,4]
[365827826,1749942633992,-430.0,0.00021917,4]
[365827827,1749942634001,-430.0,0.00021917,4]
[365827828,1749942634010,-430.0,0.00021917,4]
[365827829,1749942634019,-520.5017,0.00021917,4]
[365827830,1749942634029,-430.0,0.00021917,2]
[365827831,1749942634038,-430.0,0.00021917,4]
[365827832,1749942634048,-430.0,0.00021917,4]
[365827833,1749942634058,-430.0,0.00021917,4]
[365827834,1749942634067,-460.0,0.00021917,4]
[365827835,1749942634076,-453.37961413,0.00021917,4]
[365827836,1749942634086,-430.0,0.00021917,4]
[365827837,1749942634096,-406.72044272,0.00021917,4]
[365827838,1749942634106,-460.0,0.00021917,4]
[365827839,1749942634115,-460.0,0.00021917,4]
[365827840,1749942634124,-430.0,0.00021917,4]
[365827841,1749942634134,-460.0,0.00021917,4]
[365827842,1749942634143,-430.0,0.00021917,4]
[365827843,1749942634153,-430.0,0.00021917,4]
[365827844,1749942634162,-538.75124364,0.00021917,4]
[365827845,1749942634172,-430.0,0.00021917,4]
[365827846,1749942634181,-590.73115001,0.00021917,4]
[365827847,1749942634191,-460.0,0.00021917,4]
[365827848,1749942634200,-400.0,0.00021917,4]
[365827849,1749942634210,-377.90908767,0.00021917,4]
[365827850,1749942634219,-460.0,0.00021917,4]
[365827851,1749942634229,-518.23033614,0.00021917,4]
[365827852,1749942634239,-430.0,0.00021917,4]
[365827853,1749942634249,-430.0,0.00021917,4]
[365827854,1749942634259,-430.0,0.00021917,4]
[365827855,1749942634269,-430.0,0.00021917,4]
[365827856,1749942634279,-430.0,0.00021917,4]
[365827857,1749942634288,-500.0,0.00021917,4]
[365827858,1749942634298,-500.0,0.00021917,4]
[365827859,1749942634308,-500.0,0.00021917,4]
[365827860,1749942634317,-500.0,0.00021917,4]
[365827861,1749942634326,-500.0,0.00021917,4]
[365827862,1749942634336,-500.0,0.00021917,4]
[365827863,1749942634346,-460.0,0.00021917,4]
[365827864,1749942634355,-400.0,0.00021917,4]
[365827865,1749942634365,-430.0,0.00021917,4]
[365827866,1749942634375,-430.0,0.00021917,4]
[365827867,1749942634384,-460.0,0.00021917,4]
[365827868,1749942634393,-430.0,0.00021917,4]
[365827869,1749942634402,-460.0,0.00021917,4]
[365827870,1749942634412,-402.82316444,0.00021917,4]
[365827871,1749942634422,-430.0,0.00021917,4]
[365827872,1749942634440,-400.0,0.00021917,4]
[365827873,1749942634450,-460.0,0.00021917,4]
[365827874,1749942634460,-460.0,0.00021917,4]
[365827875,1749942634470,-460.0,0.00021917,4]
[365827876,1749942634479,-460.0,0.00021917,4]
[365827877,1749942634489,-430.0,0.00021917,4]
[365827878,1749942634499,-460.0,0.00021917,4]
[365827879,1749942634512,-430.0,0.00021917,4]
[365827880,1749942634522,-430.0,0.00021917,4]
[365827881,1749942634531,-460.0,0.00021917,4]
[365827882,1749942634541,-430.0,0.00021917,4]
[365827883,1749942634550,-430.0,0.00021917,4]
[365827884,1749942634560,-460.0,0.00021917,4]
[365827885,1749942634570,-460.0,0.00021917,4]
[365827886,1749942634581,-460.0,0.00021917,4]
[365827887,1749942634591,-430.0,0.00021917,4]
[365827888,1749942634600,-430.0,0.00021917,4]
[365827889,1749942634610,-460.0,0.00021917,4]
[365827890,1749942634620,-430.0,0.00021917,4]
[365827891,1749942634630,-460.0,0.00021917,4]
[365827892,1749942634639,-508.25772998,0.00021917,4]
[365827893,1749942634649,-460.0,0.00021917,4]
[365827894,1749942634659,-460.0,0.00021917,4]
[365827895,1749942634669,-460.0,0.00021917,4]
[365827896,1749942634679,-430.0,0.00021917,4]
[365827897,1749942634690,-500.0,0.00021917,4]
[365827898,1749942634699,-460.0,0.00021917,4]
[365827899,1749942634709,-460.0,0.00021917,4]
[365827900,1749942634718,-460.0,0.00021917,4]
[365827901,1749942634728,-460.0,0.00021917,4]
[365827902,1749942634738,-428.67606443,0.00021917,4]
[365827903,1749942634748,-460.0,0.00021917,4]
[365827904,1749942634758,-251.01915026,0.00021917,4]
[365827905,1749942634953,-400.0,0.00021917,4]
[365827906,1749942634963,-460.0,0.00021917,4]
[365827907,1749942634973,-430.0,0.00021917,4]
[365827908,1749942634982,-460.0,0.00021917,4]
[365827909,1749942634991,-430.0,0.00021917,4]
[365827910,1749942635000,-1136.8,0.00021917,4]
[365827911,1749942635010,-460.0,0.00021917,4]
[365827912,1749942635020,-430.0,0.00021917,4]
[365827913,1749942635029,-460.0,0.00021917,4]
[365827914,1749942635039,-420.0,0.00021917,4]
[365827915,1749942635048,-430.0,0.00021917,4]
[365827916,1749942635057,-420.0,0.00021917,4]
[365827917,1749942635066,-460.0,0.00021917,4]
[365827918,1749942635076,-460.0,0.00021917,4]
[365827919,1749942635086,-241.44274117,0.00021917,4]
[365827920,1749942635096,-460.0,0.00021917,4]
[365827921,1749942635106,-460.0,0.00021917,4]
[365827922,1749942635115,-460.0,0.00021917,4]
[365827923,1749942635124,-460.0,0.00021917,4]
[365827924,1749942635133,-460.0,0.00021917,4]
[365827925,1749942635142,-450.0,0.00021917,4]
[365827926,1749942635151,-504.65418729,0.00021917,4]
[365827927,1749942635161,-504.78590229,0.00021917,4]
[365827928,1749942635171,-430.0,0.00021917,4]
[365827929,1749942635179,-430.0,0.00021917,4]
[365827930,1749942635189,-430.0,0.00021917,4]
[365827931,1749942635198,-272.85335192,0.00021917,4]
[365827932,1749942635207,-510.0,0.00021917,4]
[365827933,1749942635216,-500.0,0.00021917,4]
[365827934,1749942635226,-460.0,0.00021917,4]
[365827935,1749942635235,-430.0,0.00021917,4]
[365827936,1749942635245,-430.0,0.00021917,4]
[365827937,1749942635254,-460.0,0.00021917,4]
[365827938,1749942635264,-160.73316487,0.00021917,4]
[365827939,1749942635276,-430.0,0.00021917,4]
[365827940,1749942635286,-430.0,0.00021917,4]
[365827941,1749942635296,-678.97,0.00021917,4]
[365827942,1749942635306,-430.0,0.00021917,4]
[365827943,1749942635315,-460.0,0.00021917,4]
[365827944,1749942635324,-475.35,0.00021917,4]
[365827945,1749942635335,-430.0,0.00021917,4]
[365827946,1749942635344,-240.65510431,0.00021917,4]
[365827947,1749942635353,-460.0,0.00021917,4]
[365827948,1749942635363,-460.0,0.00021917,4]
[365827949,1749942635373,-400.0,0.00021917,4]
[365827950,1749942635382,-401.94723826,0.00021917,4]
[365827951,1749942635392,-430.0,0.00021917,4]
[365827952,1749942635401,-430.0,0.00021917,4]
[365827953,1749942635411,-460.0,0.00021917,4]
[365827954,1749942635421,-547.98,0.00021917,4]
[365827955,1749942635431,-305.82518055,0.00021917,4]
[365827956,1749942635440,-460.0,0.00021917,4]
[365827957,1749942635449,-460.0,0.00021917,4]
[365827958,1749942635459,-460.0,0.00021917,4]
[365827959,1749942635469,-430.0,0.00021917,4]
[365827960,1749942635478,-523.14642579,0.00021917,4]
[365827961,1749942635488,-460.0,0.00021917,4]
[365827962,1749942635497,-460.0,0.00021917,4]
[365827963,1749942635510,-430.0,0.00021917,4]
[365827964,1749942635519,-440.0,0.00021917,4]
[365827965,1749942635528,-430.0,0.00021917,4]
[365827966,1749942635538,-440.0,0.00021917,4]
[365827967,1749942635548,-260.0,0.00021917,4]
[365827968,1749942635557,-420.0,0.00021917,4]
[365827969,1749942635567,-1870.82,0.00021917,4]
[365827970,1749942635576,-460.0,0.00021917,4]
[365827971,1749942635588,-217.90798645,0.00021917,4]
[365827972,1749942635598,-450.0,0.00021917,4]
[365827973,1749942635608,-3250.58,0.00021917,4]
[365827974,1749942635617,-576.77547368,0.00021917,4]
[365827975,1749942635627,-430.0,0.00021917,4]
[365827976,1749942635636,-174.19308474,0.00021917,4]
[365827977,1749942635646,-310.0,0.00021917,4]
[365827978,1749942635656,-433.5202404,0.00021917,4]
[365827979,1749942635666,-430.0,0.00021917,4]
[365827980,1749942635675,-434.50544222,0.00021917,4]
[365827981,1749942635685,-430.0,0.00021917,4]
[365827982,1749942635695,-460.0,0.00021917,4]
[365827983,1749942635704,-460.0,0.00021917,4]
[365827984,1749942635714,-289.55264043,0.00021917,4]
[365827985,1749942635723,-430.0,0.00021917,4]
[365827986,1749942635733,-460.0,0.00021917,4]
[365827987,1749942635742,-460.0,0.00021917,4]
[365827988,1749942635751,-430.0,0.00021917,4]
[365827989,1749942635761,-430.0,0.00021917,4]
[365827990,1749942635771,-430.0,0.00021917,4]
[365827991,1749942635780,-460.0,0.00021917,4]
[365827992,1749942635790,-450.0,0.00021917,4]
[365827993,1749942635799,-460.0,0.00021917,4]
[365827994,1749942635809,-430.0,0.00021917,4]
[365827995,1749942635819,-1454.97,0.00021917,4]
[365827996,1749942635828,-430.0,0.00021917,4]
[365827997,1749942635838,-460.0,0.00021917,4]
[365827998,1749942635847,-471.17676444,0.00021917,4]
[365827999,1749942635857,-460.0,0.00021917,4]
[365828000,1749942635867,-1630.71,0.00021917,4]
[365828001,1749942635876,-453.40421353,0.00021917,4]
[365828002,1749942635886,-320.0,0.00021917,4]
[365828003,1749942635895,-460.0,0.00021917,4]
[365828004,1749942635904,-450.0,0.00021917,4]
[365828005,1749942635913,-460.0,0.00021917,4]
[365828006,1749942635923,-430.0,0.00021917,4]
[365828007,1749942635932,-460.0,0.00021917,4]
[365828008,1749942635941,-153.1782572,0.00021917,4]
[365828009,1749942635951,-460.0,0.00021917,4]
[365828010,1749942635960,-430.0,0.00021917,4]
[365828011,1749942635970,-450.0,0.00021917,4]
[365828012,1749942635980,-460.0,0.00021917,4]
[365828013,1749942635989,-460.0,0.00021917,4]
[365828014,1749942635998,-536.87,0.00021917,4]
[365828015,1749942636007,-639.76,0.00021917,4]
[365828016,1749942636017,-327.85783229,0.00021917,4]
[365828017,1749942636026,-460.0,0.00021917,4]
[365828018,1749942636035,-460.0,0.00021917,4]
[365828019,1749942636045,-460.0,0.00021917,4]
[365828020,1749942636054,-460.0,0.00021917,4]
[365828021,1749942636063,-401.6071116,0.00021917,4]
[365828022,1749942636074,-460.0,0.00021917,4]
[365828023,1749942636084,-460.0,0.00021917,4]
[365828024,1749942636093,-4036.84,0.00021917,4]
[365828025,1749942636103,-460.0,0.00021917,4]
[365828026,1749942636113,-450.0,0.00021917,4]
[365828027,1749942636122,-450.0,0.00021917,4]
[365828028,1749942636133,-430.0,0.00021917,4]
[365828029,1749942636143,-580.06,0.00021917,4]
[365828030,1749942636153,-430.0,0.00021917,4]
[365828031,1749942636162,-460.0,0.00021917,4]
[365828032,1749942636173,-430.0,0.00021917,4]
[365828033,1749942636183,-460.0,0.00021917,4]
[365828034,1749942636192,-460.0,0.00021917,4]
[365828035,1749942636202,-460.0,0.00021917,4]
[365828036,1749942636211,-460.0,0.00021917,4]
[365828037,1749942636220,-460.0,0.00021917,4]
[365828038,1749942636229,-460.0,0.00021917,4]
[365828039,1749942636239,-460.0,0.00021917,4]
[365828040,1749942636248,-460.0,0.00021917,4]
[365828041,1749942636258,-460.0,0.00021917,4]
[365828042,1749942636268,-460.0,0.00021917,4]
[365828043,1749942636278,-430.0,0.00021917,4]
[365828044,1749942636287,-460.0,0.00021917,4]
[365828045,1749942636297,-1703.45,0.00021917,4]
[365828046,1749942636307,-284.5567329,0.00021917,4]
[365828047,1749942636318,-670.68,0.00021917,4]
[365828048,1749942636328,-460.0,0.00021917,4]
[365828049,1749942636339,-536.34,0.00021917,4]
[365828050,1749942636349,-453.71394795,0.00021917,4]
[365828051,1749942636358,-460.0,0.00021917,4]
[365828052,1749942636368,-460.0,0.00021917,4]
[365828053,1749942636378,-460.0,0.00021917,4]
[365828054,1749942636387,-240.0,0.00021917,4]
[365828055,1749942636397,-460.0,0.00021917,4]
[365828056,1749942636407,-460.0,0.00021917,4]
[365828057,1749942636416,-450.0,0.00021917,4]
[365828058,1749942636425,-460.0,0.00021917,4]
[365828059,1749942636435,-460.0,0.00021917,4]
[365828060,1749942636445,-460.0,0.00021917,4]
[365828061,1749942636455,-554.82,0.00021917,4]
[365828062,1749942636465,-500.0,0.00021917,4]
[365828063,1749942636475,-619.93,0.00021917,4]
[365828064,1749942636484,-460.0,0.00021917,4]
[365828065,1749942636495,-460.0,0.00021917,4]
[365828066,1749942636510,-460.0,0.00021917,4]
[365828067,1749942636522,-710.88,0.00021917,4]
[365828068,1749942636531,-460.0,0.00021917,4]
[365828069,1749942636542,-460.0,0.00021917,4]
[365828070,1749942636554,-460.0,0.00021917,4]
[365828071,1749942636564,-460.0,0.00021917,4]
[365828072,1749942636574,-921.63,0.00021917,4]
[365828073,1749942636587,-450.0,0.00021917,4]
[365828074,1749942636597,-335.45099394,0.00021917,4]
[365828075,1749942636607,-460.0,0.00021917,4]
[365828076,1749942636617,-216.07266042,0.00021917,4]
[365828077,1749942636627,-470.7469232,0.00021917,4]
[365828078,1749942636637,-504.24922886,0.00021917,4]
[365828079,1749942636647,-1084.94,0.00021917,4]
[365828080,1749942636656,-430.0,0.00021917,4]
[365828081,1749942636666,-430.0,0.00021917,4]
[365828082,1749942636675,-451.07562079,0.00021917,4]
[365828083,1749942636685,-400.0,0.00021917,4]
[365828084,1749942636695,-430.0,0.00021917,4]
[365828085,1749942636705,-430.0,0.00021917,4]
[365828086,1749942636714,-460.0,0.00021917,4]
[365828087,1749942636724,-430.0,0.00021917,4]
[365828088,1749942636734,-430.0,0.00021917,4]
[365828089,1749942636744,-472.23462404,0.00021917,4]